[Event "SixDays Budapest GM-C 10-2024"]
[Site "Budapest"]
[Date "2024.10.04"]
[Round "8.1"]
[White "Pap, Gyula"]
[Black "Pacher, Milan"]
[Result "1/2-1/2"]
[ECO "C42"]
[WhiteElo "2476"]
[BlackElo "2343"]
[Annotator "TA"]
[PlyCount "37"]
[EventDate "2024.09.24"]
[EventType "tourn"]
[EventCountry "HUN"]
[SourceTitle "playchess.com"]
[Source "ChessBase"]
[SourceQuality "1"]
[TimeControl "5400+30"]

{[%evp 17,37,23,41,32,11,15,20,15,0,8,27,25,25,18,19,22,42,9,25,13,19,4]} 1. e4 {[%emt 0:00:34]} e5 {[%emt 0:03:54]} 2. Nf3 {[%emt 0:00:11]} Nf6 {[%emt 0:00:04]} 3. Nxe5 {[%emt 0:00:52]} d6 {[%emt 0:00:02][%cal Bd7d6,Bd6d5][%mdl 32]} 4. Nf3 {[%emt 0:00:40]} Nxe4 {[%emt 0:00:04]} 5. d4 {[%emt 0:00:13]} d5 {[%emt 0:00:04]} 6. Bd3 {[%emt 0:00:31]} Bd6 {[%emt 0:00:05]} 7. O-O {[%emt 0:00:32]} O-O {[%emt 0:00:04]} 8. c4 {[%emt 0:01:45]} c6 {[%emt 0:00:02]} 9. Re1 {[%emt 0:01:12]} Bf5 {[%emt 0:02:25]} 10. cxd5 {[%emt 0:07:04]} cxd5 {[%emt 0:00:03]} 11. Nc3 {[%emt 0:00:06]} Nxc3 {[%emt 0:00:06]} 12. bxc3 {[%emt 0:00:03]} Bxd3 {[%emt 0:00:06]} 13. Qxd3 {[%emt 0:00:04]} Qd7 {[%emt 0:05:24]} 14. Ne5 {[%emt 0:20:17]} Bxe5 {[%emt 0:01:54]} 15. dxe5 {[%emt 0:00:05]} Nc6 {[%emt 0:00:29]} 16. Ba3 {[%emt 0:01:09]} Rfe8 {[%emt 0:01:41]} 17. Bd6 {[%emt 0:00:55]} Ne7 {[%emt 0:02:50]} 18. a4 {[%emt 0:07:47]} Rac8 {[%emt 0:04:29]} 19. Qb5 {[%emt 0:03:10] Not much happened in this game.   Weighted Error Value: White=0.09 (flawless) /Black=0.02 (flawless) .  Inaccurate:     	White=1     	---        OK:         	White=2     	Black=6} 1/2-1/2

[Event "SixDays Budapest GM-C 10-2024"]
[Site "Budapest"]
[Date "2024.10.04"]
[Round "8.3"]
[White "Chen, Yining"]
[Black "Borgaonkar Akshay"]
[Result "1/2-1/2"]
[ECO "D10"]
[WhiteElo "2252"]
[BlackElo "2415"]
[Annotator "RC"]
[PlyCount "103"]
[EventDate "2024.09.24"]
[EventType "tourn"]
[EventCountry "HUN"]
[SourceTitle "playchess.com"]
[Source "ChessBase"]
[SourceQuality "1"]
[TimeControl "5400+30"]

1. d4 {[%emt 0:00:03]} d5 {[%emt 0:07:17]} 2. c4 {[%emt 0:00:15]} c6 {[%emt 0:00:37]} 3. Nc3 {[%emt 0:00:13]} Nf6 {[%emt 0:00:17]} 4. e3 {[%emt 0:00:21]} Bf5 {[%emt 0:00:09]} 5. f3 {[%emt 0:00:34]} e6 {[%emt 0:03:32]} 6. g4 {[%emt 0:00:15]} Bg6 {[%emt 0:00:06]} 7. h4 {[%emt 0:00:06]} h6 {[%emt 0:00:43]} 8. Nge2 {[%emt 0:00:07]} Bd6 {[%emt 0:01:36]} 9. Nf4 {[%emt 0:00:09]} Bh7 {[%emt 0:00:47]} 10. Kf2 {[%emt 0:00:11]} Bxf4 {[%emt 0:03:55]} 11. exf4 {[%emt 0:00:07]} dxc4 {[%emt 0:00:10]} 12. Bxc4 {[%emt 0:00:06]} b5 {[%emt 0:00:31]} 13. Bb3 {[%emt 0:00:16]} h5 {[%emt 0:01:04]} 14. f5 {[%emt 0:00:34]} hxg4 {[%emt 0:03:02]} 15. fxe6 {[%emt 0:00:08]} fxe6 {[%emt 0:00:47]} 16. Bxe6 {[%emt 0:00:17]} Qd6 {[%emt 0:01:40]} 17. Bg5 {[%emt 0:01:11]} Na6 {[%emt 0:15:37]} 18. Qe2 {[%emt 0:19:52]} Qxd4+ {[%emt 0:15:59]} 19. Kg2 {[%emt 0:08:07]} Bd3 {[%emt 0:02:04]} 20. Qf2 {[%emt 0:04:25]} Qxf2+ {[%emt 0:04:54]} 21. Kxf2 {[%emt 0:02:52]} Nc5 {[%emt 0:05:17]} 22. Rae1 {[%emt 0:09:48]} gxf3 {[%emt 0:04:10]} 23. Bxf6 {[%emt 0:09:34]} gxf6 {[%emt 0:00:39]} 24. Kxf3 {[%emt 0:02:31]} b4 {[%emt 0:04:07]} 25. Bf5+ {[%emt 0:05:18]} Kf7 {[%emt 0:01:28]} 26. Ne4 {[%emt 0:00:07]} Rad8 {[%emt 0:02:03]} 27. h5 {[%emt 0:02:49]} Bxe4+ {[%emt 0:02:29]} 28. Bxe4 {[%emt 0:00:04]} Nxe4 {[%emt 0:00:18]} 29. Rxe4 {[%emt 0:00:07]} c5 {[%emt 0:00:31]} 30. h6 {[%emt 0:03:23]} Rd3+ {[%emt 0:05:28]} 31. Kf4 {[%emt 0:06:13]} Rd4 {[%emt 0:06:29]} 32. Rxd4 {[%emt 0:06:18]} cxd4 {[%emt 0:00:01]} 33. Ke4 {[%emt 0:00:11]} Kg6 {[%emt 0:00:19]} 34. Rg1+ {[%emt 0:01:45]} Kxh6 {[%emt 0:00:35]} 35. Kf5 {[%emt 0:05:40]} d3 {[%emt 0:02:01]} 36. Kxf6 {[%emt 0:01:38]} Rf8+ {[%emt 0:00:06]} 37. Ke5 {[%emt 0:00:04]} Rf2 {[%emt 0:00:36]} 38. Rb1 {[%emt 0:00:11]} Rc2 {[%emt 0:00:52]} 39. Kf6 {[%emt 0:00:35]} Rc6+ {[%emt 0:01:20]} 40. Kf5 {[%emt 0:00:05]} d2 {[%emt 0:00:13]} 41. Rd1 {[%emt 0:00:14]} Rc2 {[%emt 0:00:07]} 42. Kf6 {[%emt 0:00:19]} Kh7 {[%emt 0:03:24]} 43. Kf7 {[%emt 0:00:17]} Rc7+ {[%emt 0:00:18]} 44. Kf6 {[%emt 0:00:13]} Rc6+ {[%emt 0:00:24]} 45. Kf7 {[%emt 0:00:10]} Rc7+ {[%emt 0:00:59]} 46. Kf6 {[%emt 0:00:06]} Rc2 {[%emt 0:00:06]} 47. Kf7 {[%emt 0:00:06]} Kh6 {[%emt 0:01:35]} 48. Kf6 {[%emt 0:00:05]} Kh5 {[%emt 0:00:21]} 49. Kf5 {[%emt 0:00:06]} Kh4 {[%emt 0:00:40]} 50. Kf4 {[%emt 0:00:04]} Kh3 {[%emt 0:00:16]} 51. Kf3 {[%emt 0:00:26]} Kh2 {[%emt 0:00:35]} 52. Ke3 {[%emt 0:00:14]} 1/2-1/2

[Event "SixDays Budapest GM-C 10-2024"]
[Site "Budapest"]
[Date "2024.10.04"]
[Round "8.4"]
[White "Mamatov, Melis"]
[Black "Srihari L R"]
[Result "0-1"]
[ECO "C55"]
[WhiteElo "2362"]
[BlackElo "2503"]
[Annotator "TA"]
[PlyCount "138"]
[EventDate "2024.09.24"]
[EventType "tourn"]
[EventCountry "HUN"]
[SourceTitle "playchess.com"]
[Source "ChessBase"]
[SourceQuality "1"]
[TimeControl "5400+30"]

1. e4 {[%emt 0:00:05]} e5 {[%emt 0:04:59]} 2. Nf3 {[%emt 0:00:12]} Nc6 {[%emt 0:00:09]} 3. Bc4 {[%emt 0:00:07]} Nf6 {[%emt 0:00:07]} 4. d3 {[%emt 0:00:07]} h6 {[%emt 0:00:06]} 5. c3 {[%emt 0:05:40]} d6 {[%emt 0:01:51]} 6. O-O {[%emt 0:03:53]} g5 {[%emt 0:00:25] C55: Two Knights: 4 d3, 4 d4 exd4 5 e5 and Max Lange Attack.} 7. Re1 {[%emt 0:03:19]} Bg7 {[%emt 0:00:55]} 8. d4 {[%emt 0:00:51]} g4 {[%emt 0:01:23]} 9. dxe5 {[%emt 0:05:39]} Nd7 {[%emt 0:00:31]} 10. Nd4 {[%emt 0:06:20]} Ndxe5 {[%emt 0:05:07]} 11. Bf1 {[%emt 0:02:03]} Qf6 {[%emt 0:09:25]} 12. Na3 {[%emt 0:06:23]} Be6 $146 {[%emt 0:06:26]} ({Predecessor:} 12... Bd7 13. Nab5 O-O-O 14. Be3 Kb8 15. a4 h5 16. Qd2 Bh6 17. Bxh6 Rxh6 18. Qe3 h4 {0-1 Buchenau,F (2218)-Bai,A (2411) Rilton Cup 50th 2022 (1)}) 13. Nab5 {[%emt 0:02:05]} Kd7 {[%emt 0:06:04]} 14. Nxc6 {[%emt 0:25:01]} bxc6 {[%emt 0:13:56]} 15. Nd4 {[%emt 0:00:08]} h5 {[%emt 0:03:05]} 16. Be3 {[%emt 0:03:52]} Bh6 {[%emt 0:00:31]} 17. Qa4 {[%emt 0:07:35]} a6 {[%emt 0:01:37]} 18. Rad1 {[%emt 0:01:38]} h4 {[%emt 0:12:51]} 19. Qc2 {[%emt 0:14:13]} (19. Bxa6 g3 20. Kh1 (20. fxg3 $2 hxg3 21. Qc2 Bxe3+ 22. Rxe3 Rxh2 $19) 20... h3 $19 (20... gxf2 $2 21. Bxf2 Qxf2 22. Re2 $19)) (19. Nxc6 $1 $14 {keeps the upper hand.} Nxc6) 19... g3 {[%emt 0:03:33]} (19... Bxe3 $17 20. Rxe3 Qg5) 20. h3 {[%emt 0:02:25]} Bxe3 {[%emt 0:04:24]} 21. Rxe3 {[%emt 0:00:17]} Qxf2+ {[%emt 0:03:32]} (21... Bxa2 22. fxg3 hxg3 23. Rxg3 $11) 22. Qxf2 {[%emt 0:00:05]} gxf2+ {[%emt 0:00:05]} 23. Kxf2 {[%emt 0:00:03]} Bxa2 {[%emt 0:00:16]} 24. Ra1 {[%emt 0:03:17]} Bc4 {[%emt 0:01:05]} 25. Nf3 {[%emt 0:00:06]} Bxf1 {[%emt 0:00:41]} 26. Nxe5+ {[%emt 0:00:32]} dxe5 {[%emt 0:00:01]} 27. Rxf1 {[%emt 0:00:41]} Ke6 {[%emt 0:00:12]} 28. Rf3 {[%emt 0:00:59]} f6 {[%emt 0:00:19]} 29. Ke2 {[%emt 0:03:00]} Rh6 {[%emt 0:00:22]} 30. Ra1 {[%emt 0:00:09]} (30. Kd3 $11 {keeps the balance.}) 30... a5 {[%emt 0:02:01]} 31. b3 {[%emt 0:01:09]} (31. Rf2 $15) 31... Rg6 {[%emt 0:01:10]} 32. Kf1 {[%emt 0:01:13]} Rb8 {[%emt 0:02:32]} 33. Rxa5 {[%emt 0:00:51]} Rxb3 {[%emt 0:00:08]} 34. Ra2 {[%emt 0:00:03]} Rg3 {[%emt 0:02:54]} 35. Raf2 {[%emt 0:00:09]} Rb1+ {[%emt 0:00:06]} (35... Rxc3 36. Rxf6+ Kd7 37. Rf7+ Kc8 38. Re2 $11) 36. Ke2 {[%emt 0:00:10]} Rg6 {[%emt 0:00:06]} 37. g4 {[%emt 0:01:31]} hxg3 {[%emt 0:00:41]} 38. Rg2 {[%emt 0:00:01]} Rh6 {[%emt 0:05:59]} ({Of course not} 38... Rb2+ $6 39. Kf1 Rxg2 (39... Rb1+ 40. Ke2 $17) 40. Kxg2 $11) 39. Rgxg3 {[%emt 0:00:18]} Rh1 {[%emt 0:00:41]} 40. Re3 {[%emt 0:02:04]} Rh4 {[%emt 0:02:08]} 41. Kd3 {[%emt 0:01:16]} Kf7 {[%emt 0:00:27]} 42. Rgf3 {[%emt 0:00:16]} Rh2 {[%emt 0:01:31]} (42... Rg1 $17 43. Ke2 Ke6) 43. Kc4 $15 {[%emt 0:00:49]} Ra2 $1 {[%emt 0:00:32]} 44. Rg3 $2 {[%emt 0:00:39] [#]} (44. Kc5 $15) 44... Ra4+ $1 $19 {[%emt 0:00:19]} 45. Kd3 {[%emt 0:00:05]} c5 {[%emt 0:00:15]} 46. Rg4 $2 {[%emt 0:00:38]} (46. Re2) 46... c4+ {[%emt 0:00:32]} 47. Ke2 {[%emt 0:00:19]} Ra2+ {[%emt 0:00:06]} 48. Kf1 {[%emt 0:00:15]} Rxg4 49. hxg4 {[%emt 0:00:01]} Kg6 {[%emt 0:00:40]} 50. Rh3 {[%emt 0:00:37]} Rd2 {[%emt 0:00:43]} 51. Rf3 $2 {[%emt 0:00:14]} (51. Rh8) 51... Rd3 $19 {[%emt 0:00:44]} 52. Rf5 {[%emt 0:00:01]} Rg3 {[%emt 0:00:24]} 53. g5 {[%emt 0:01:03]} Rxg5 {[%emt 0:00:15]} ({And not} 53... Rxc3 54. gxf6 Kf7 55. Ke2 $11) 54. Rf3 {[%emt 0:00:01]} f5 {[%emt 0:02:09]} 55. Rh3 {[%emt 0:00:00]} f4 {[%emt 0:02:34]} 56. Rh8 {[%emt 0:00:02]} Rg3 {[%emt 0:00:06]} 57. Rg8+ {[%emt 0:00:23]} Kh5 {[%emt 0:00:29]} 58. Re8 {[%emt 0:00:14]} Kg4 {[%emt 0:01:21]} 59. Kf2 {[%emt 0:00:01]} Rf3+ 60. Kg2 Re3 {[%emt 0:00:33]} (60... Rxc3 $142 61. Rg8+ Kh4) 61. Rxe5 {[%emt 0:01:32]} Rxc3 {[%emt 0:00:15]} 62. Re7 {[%emt 0:02:29]} Rc2+ {[%emt 0:00:12]} 63. Kg1 {[%emt 0:00:01]} c5 {[%emt 0:01:15]} 64. Rc7 {[%emt 0:00:17]} Kg3 {[%emt 0:00:21]} 65. Rg7+ {[%emt 0:00:17]} Kf3 {[%emt 0:00:05]} 66. e5 {[%emt 0:00:35]} Re2 {[%emt 0:00:06]} 67. e6 {[%emt 0:00:07]} c3 {[%emt 0:00:37]} 68. Rc7 {[%emt 0:00:46]} c2 {[%emt 0:00:49]} 69. Rxc5 {[%emt 0:00:03]} Re1+ {[%emt 0:00:03]} ({Worse is} 69... Rxe6 70. Kf1 $11) 0-1

[Event "SixDays Budapest GM-C 10-2024"]
[Site "Budapest"]
[Date "2024.10.04"]
[Round "8.5"]
[White "Susilodinata, Andrean"]
[Black "Laddha, Shubh Jayesh"]
[Result "1-0"]
[ECO "C70"]
[WhiteElo "2393"]
[BlackElo "2308"]
[Annotator "RC"]
[PlyCount "185"]
[EventDate "2024.09.24"]
[EventType "tourn"]
[EventCountry "HUN"]
[SourceTitle "playchess.com"]
[Source "ChessBase"]
[SourceQuality "1"]
[TimeControl "5400+30"]

1. e4 {[%emt 0:00:04]} e5 {[%emt 0:00:05]} 2. Nf3 {[%emt 0:00:04]} Nc6 {[%emt 0:00:03]} 3. Bb5 {[%emt 0:00:22]} a6 {[%emt 0:00:04]} 4. Ba4 {[%emt 0:00:04]} Bc5 {[%emt 0:00:16]} 5. c3 {[%emt 0:00:06]} Nge7 {[%emt 0:00:04]} 6. d4 {[%emt 0:00:34]} exd4 {[%emt 0:00:05]} 7. cxd4 {[%emt 0:00:04]} Bb4+ {[%emt 0:00:04]} 8. Nc3 {[%emt 0:00:58]} d5 {[%emt 0:00:14]} 9. O-O {[%emt 0:00:33]} dxe4 {[%emt 0:00:17]} 10. Nxe4 {[%emt 0:00:36]} O-O {[%emt 0:00:13]} 11. h3 {[%emt 0:06:04]} Bf5 {[%emt 0:06:10]} 12. Ng3 {[%emt 0:12:36]} Bg6 {[%emt 0:10:56]} 13. a3 {[%emt 0:08:18]} Ba5 {[%emt 0:06:17]} 14. Bb3 {[%emt 0:15:15]} Nd5 {[%emt 0:09:14]} 15. h4 {[%emt 0:07:02]} h6 {[%emt 0:09:31]} 16. Ne5 {[%emt 0:00:24]} Nxe5 {[%emt 0:07:54]} 17. dxe5 {[%emt 0:00:05]} c6 {[%emt 0:01:47]} 18. h5 {[%emt 0:17:10]} Bh7 {[%emt 0:00:15]} 19. Qf3 {[%emt 0:00:13]} Re8 {[%emt 0:05:46]} 20. Bf4 {[%emt 0:03:11]} Qh4 {[%emt 0:07:13]} 21. Bxd5 {[%emt 0:04:45]} cxd5 {[%emt 0:00:06]} 22. Rad1 {[%emt 0:01:25]} Rad8 {[%emt 0:07:01]} 23. Rd4 {[%emt 0:00:13]} Bb6 {[%emt 0:11:56]} 24. Rb4 {[%emt 0:00:27]} Bc5 {[%emt 0:01:19]} 25. Rxb7 {[%emt 0:00:30]} Be4 {[%emt 0:01:16]} 26. Nxe4 {[%emt 0:07:23]} dxe4 {[%emt 0:00:09]} 27. Qxe4 {[%emt 0:00:19]} Rd4 {[%emt 0:02:27]} 28. Qc6 {[%emt 0:01:11]} Rxf4 {[%emt 0:00:34]} 29. Qxc5 {[%emt 0:00:09]} Qxh5 {[%emt 0:00:45]} 30. Re7 {[%emt 0:05:14]} Rxe7 {[%emt 0:02:15]} 31. Qxe7 {[%emt 0:00:03]} Rh4 {[%emt 0:00:20]} 32. f3 {[%emt 0:00:05]} Rd4 {[%emt 0:04:17]} 33. e6 {[%emt 0:02:20]} fxe6 {[%emt 0:00:54]} 34. Qxe6+ {[%emt 0:00:01]} Kh7 {[%emt 0:00:12]} 35. Qe3 {[%emt 0:00:09]} Qd5 {[%emt 0:00:52]} 36. Re1 {[%emt 0:00:58]} Rd2 {[%emt 0:00:38]} 37. Re2 {[%emt 0:00:16]} Rd1+ {[%emt 0:00:34]} 38. Kf2 {[%emt 0:00:10]} a5 {[%emt 0:01:08]} 39. Qe4+ {[%emt 0:01:43]} Qxe4 {[%emt 0:00:05]} 40. Rxe4 {[%emt 0:00:28]} Rb1 {[%emt 0:00:49]} 41. Re2 {[%emt 0:00:27]} Kg6 {[%emt 0:01:35]} 42. Ke3 {[%emt 0:00:05]} Rd1 {[%emt 0:01:58]} 43. Rd2 {[%emt 0:00:17]} Rc1 {[%emt 0:00:33]} 44. Kd4 {[%emt 0:02:18]} Kf5 {[%emt 0:00:53]} 45. b4 {[%emt 0:00:04]} axb4 {[%emt 0:01:17]} 46. axb4 {[%emt 0:00:01]} Ke6 {[%emt 0:00:23]} 47. Ra2 {[%emt 0:01:23]} Rc7 {[%emt 0:01:16]} 48. Ra6+ {[%emt 0:01:09]} Kd7 {[%emt 0:00:06]} 49. b5 {[%emt 0:00:05]} Rb7 {[%emt 0:01:39]} 50. Kc5 {[%emt 0:00:09]} Rc7+ {[%emt 0:00:21]} 51. Rc6 {[%emt 0:00:07]} Ra7 {[%emt 0:00:13]} 52. Rg6 {[%emt 0:00:27]} Kc8 {[%emt 0:00:15]} 53. b6 {[%emt 0:00:23]} Rf7 {[%emt 0:00:20]} 54. Kc6 {[%emt 0:00:14]} Kb8 {[%emt 0:00:27]} 55. Re6 {[%emt 0:00:24]} Rf8 {[%emt 0:00:06]} 56. Re7 {[%emt 0:00:30]} g5 {[%emt 0:01:46]} 57. Rh7 {[%emt 0:01:57]} Rc8+ {[%emt 0:00:14]} 58. Kd5 {[%emt 0:00:20]} Rc2 {[%emt 0:00:41]} 59. g4 {[%emt 0:00:06]} Rh2 {[%emt 0:00:36]} 60. Ke4 {[%emt 0:00:49]} Rh3 {[%emt 0:00:22]} 61. Rf7 {[%emt 0:03:27]} Kc8 {[%emt 0:00:39]} 62. Ke5 {[%emt 0:00:46]} Kb8 {[%emt 0:00:30]} 63. Ke6 {[%emt 0:00:28]} Kc8 {[%emt 0:00:31]} 64. Rf6 {[%emt 0:02:27]} Kb7 {[%emt 0:00:48]} 65. Kf7 {[%emt 0:00:01]} Ka6 {[%emt 0:00:38]} 66. Kg7 {[%emt 0:01:07]} Kb7 {[%emt 0:00:13]} 67. Rxh6 {[%emt 0:00:56]} Rxf3 {[%emt 0:00:04]} 68. Kg6 {[%emt 0:00:04]} Kxb6 {[%emt 0:00:06]} 69. Kxg5+ {[%emt 0:00:04]} Kc7 {[%emt 0:00:18]} 70. Re6 {[%emt 0:00:07]} Kd7 {[%emt 0:00:23]} 71. Re4 {[%emt 0:00:07]} Rf8 {[%emt 0:00:32]} 72. Kh6 {[%emt 0:00:12]} Rh8+ {[%emt 0:00:11]} 73. Kg6 {[%emt 0:00:14]} Rh4 {[%emt 0:00:25]} 74. Kf6 {[%emt 0:01:50]} Kd8 {[%emt 0:02:26]} 75. Kf7 {[%emt 0:00:30]} Rh7+ {[%emt 0:00:28]} 76. Kg6 {[%emt 0:00:09]} Rh4 {[%emt 0:00:11]} 77. Kg5 {[%emt 0:00:33]} Rh8 {[%emt 0:00:25]} 78. Kf5 {[%emt 0:00:19]} Rh4 {[%emt 0:00:20]} 79. Re1 {[%emt 0:00:08]} Rh2 {[%emt 0:00:24]} 80. g5 {[%emt 0:00:06]} Rf2+ {[%emt 0:00:05]} 81. Kg6 {[%emt 0:00:02]} Kd7 {[%emt 0:00:05]} 82. Kg7 {[%emt 0:00:04]} Rg2 {[%emt 0:00:03]} 83. g6 {[%emt 0:00:04]} Rg3 {[%emt 0:00:02]} 84. Kf7 {[%emt 0:00:11]} Rf3+ {[%emt 0:00:04]} 85. Kg8 {[%emt 0:00:02]} Rh3 {[%emt 0:00:08]} 86. g7 {[%emt 0:00:04]} Rh2 {[%emt 0:00:08]} 87. Re4 {[%emt 0:00:13]} Kd6 {[%emt 0:00:06]} 88. Kf7 {[%emt 0:00:35]} Rf2+ {[%emt 0:00:05]} 89. Kg6 {[%emt 0:00:04]} Rg2+ {[%emt 0:00:08]} 90. Kf6 {[%emt 0:00:03]} Rg1 {[%emt 0:00:07]} 91. Rd4+ {[%emt 0:00:37]} Kc7 {[%emt 0:00:07]} 92. Rd5 {[%emt 0:00:05]} Kc6 {[%emt 0:00:04]} 93. Rg5 {[%emt 0:00:04]} 1-0